Workbook

Sheet 例題29非等温CSTR
A1: 反応率 xA | B1: 0.4097334724 | D1: 反応器容積V | E1: 1.2 | F1: m3
A2: 反応温度T | B2: 345.2624065 | C2: K | D2: 供給温度T0 | E2: 330 | F2: K
A3: CSTR設計方程式(1) | B3: =E5*B1-E1*E10 -> -0.04213443825 | D3: 全供給 F | E3: 163 | F3: kmol/h
A4: 熱収支(2) | B4: =(E3*E6*(E2-B2)+(-E7)*B1*E5)/1000 -> 0.03287713533 | D4: 供給濃度cA0 | E4: 9.3 | F4: kmol/m3
B5: =SUMSQ(B3:B4) -> 0.002856216914 | D5: 供給反応物 FA0 | E5: 146.7 | F5: kmol/h
D6: 熱容量 Cp | E6: 166.7 | F6: kJ/kmol-K
D7: 反応熱 ΔrH | E7: -6900 | F7: kJ/kmol
D8: k | E8: =31.1*EXP((65700/8.31)*((1/360)-(1/B2))) -> 12.17978025 | F8: /h
D9: Kc | E9: =3.03*EXP((-6900/8.31)*((1/333)-(1/B2))) -> 2.77320619
D10: -rA | E10: =E8*E4*(1-(1+(1/E9))*B1) -> 50.12502903 | F10: kmol/m3-h

Sheet fogler_ex_11_3
A1: 微分方程式数 | B1: 1 | F1: 定数
A2: V= | B2: X= | F2: FA0= | G2: 146.7 | H2: kmol/h | I2: n-butane
A3: 0 | B3: 0 | F3: CA0= | G3: 9.3 | H3: kmol/m3 | I3: n-butane
B4: X'= | F4: CA | G4: =G3*(1-B3) -> 9.3 | I4: n-butane
A5: 微分方程式→ | B5: =G9/G2 -> 0.2677685979 | F5: CB | G5: =G3-G4 -> 0 | I5: isobutane
F6: T | G6: =330+43.3*B3 -> 330 | H6: K
A7: 積分区間W=[a, | B7: 0 | F7: k | G7: =31.1*EXP(7906*(G6-360)/(360*G6)) -> 4.223833689 | H7: /h | I7: 31.1*EXP(7906*(T-360)/(360*T))
A8: b] | B8: 5 | F8: Kc | G8: =3.03*EXP((-6900/8.31)*(1/333-1/G6)) -> 3.099468088 | I8: 3.03*EXP((-6900/8.31)*(1/333-1/T))
A9: 積分刻み幅ΔW | B9: 0.25 | F9: -rA | G9: =G7*(G4-G5/G8) -> 39.28165331
A10: 計算結果 | L10: n-butane | M10: isobutane
A11: V[m3] | B11: X | E11: CA[kmol/m3] | F11: CB | G11: T | H11: k | I11: Kc | J11: -rA[kmol/h m3] | K11: F[kmol/h] | L11: FA[kmol/h] | M11: FB[kmol/h] | N11: (FA0/-ra)
A12: 0 | B12: 0 | E12: =$G$3*(1-B12) -> 9.3 | F12: =$G$3-E12 -> 0 | G12: =330+43.3*B12 -> 330 | H12: =31.1*EXP(7906*(G12-360)/(360*G12)) -> 4.223833689 | I12: =3.03*EXP((-6900/8.31)*(1/333-1/G12)) -> 3.099468088 | J12: =H12*(E12-F12/I12) -> 39.28165331 | K12: 163 | L12: =G2 -> 146.7 | M12: =$L$12*B12 -> 0 | N12: =$G$2/J12 -> 3.734567862
A13: 0.25 | B13: 0.07120718104 | E13: =$G$3*(1-B13) -> 8.637773216 | F13: =$G$3-E13 -> 0.6622267837 | G13: =330+43.3*B13 -> 333.0832709 | H13: =31.1*EXP(7906*(G13-360)/(360*G13)) -> 5.272542176 | I13: =3.03*EXP((-6900/8.31)*(1/333-1/G13)) -> 3.028111784 | J13: =H13*(E13-F13/I13) -> 44.38995564 | K13: 163 | L13: =$L$12*(1-B13) -> 136.2539065 | M13: =$L$12*B13 -> 10.44609346 | N13: =$G$2/J13 -> 3.30480168
A14: 0.5 | B14: 0.1515621112 | E14: 7.890472366 | F14: 1.409527634 | G14: 336.5626394 | H14: 6.738870056 | I14: 2.951071548 | J14: 49.95416471 | K14: 163 | L14: =$L$12*(1-B14) -> 124.4658383 | M14: 22.23416171 | N14: 2.936692083
A15: 0.75 | B15: 0.2413476784 | E15: 7.055466591 | F15: 2.244533409 | G15: 340.4503545 | H15: 8.812200706 | I15: 2.869093163 | J15: 55.28027459 | K15: 163 | L15: 111.2942956 | M15: 35.40570442 | N15: 2.653749481
A16: 1 | B16: 0.3389462976 | E16: 6.147799433 | F16: 3.152200567 | G16: 344.6763747 | H16: 11.71488842 | I16: 2.784568818 | J16: 58.7592418 | K16: 163 | L16: 96.97657815 | M16: 49.72342185 | N16: 2.496628539
A17: 1.25 | B17: 0.4390478565 | E17: 5.216854935 | F17: 4.083145065 | G17: 349.0107722 | H17: 15.57587111 | I17: 2.702495104 | J17: 57.72379218 | K17: 163 | L17: 82.29167946 | M17: 64.40832054 | N17: 2.541413072
A18: 1.5 | B18: 0.5317284419 | E18: 4.354925491 | F18: 4.945074509 | G18: 353.0238415 | H18: 20.15053668 | I18: 2.630386459 | J18: 49.8714755 | K18: 163 | L18: 68.69543758 | M18: 78.00456242 | N18: 2.941561254
A19: 1.75 | B19: 0.605736794 | E19: 3.666647816 | F19: 5.633352184 | G19: 356.2284032 | H19: 24.64792681 | I19: 2.57531618 | J19: 36.4593815 | K19: 163 | L19: 57.83841233 | M19: 88.86158767 | N19: 4.02365575
A20: 2 | B20: 0.6556564553 | E20: 3.202394966 | F20: 6.097605034 | G20: 358.3899245 | H20: 28.17815384 | I20: 2.539365696 | J20: 22.57530591 | K20: 163 | L20: 50.51519801 | M20: 96.18480199 | N20: 6.498250813
A21: 2.25 | B21: 0.6846745948 | E21: 2.932526269 | F21: 6.367473731 | G21: 359.64641 | H21: 30.43570812 | I21: 2.51889452 | J21: 12.31556699 | K21: 163 | L21: 46.25823695 | M21: 100.4417631 | N21: 11.91175364
A22: 2.5 | B22: 0.6998860151 | E22: 2.79106006 | F22: 6.50893994 | G22: 360.3050645 | H22: 31.68368678 | I22: 2.508286032 | J22: 6.212692637 | K22: 163 | L22: 44.02672159 | M22: 102.6732784 | N22: 23.6129499
A23: 2.75 | B23: 0.70739407 | E23: 2.721235149 | F23: 6.578764851 | G23: 360.6301632 | H23: 32.31664906 | I23: 2.503080597 | J23: 3.004409744 | K23: 163 | L23: 42.92528993 | M23: 103.7747101 | N23: 48.82822667
A24: 3 | B24: 0.7109852614 | E24: 2.687837069 | F24: 6.612162931 | G24: 360.7856618 | H24: 32.62344642 | I24: 2.500597907 | J24: 1.422522512 | K24: 163 | L24: 42.39846216 | M24: 104.3015378 | N24: 103.1266632
A25: 3.25 | B25: 0.7126766216 | E25: 2.672107419 | F25: 6.627892581 | G25: 360.8588977 | H25: 32.76885501 | I25: 2.499430216 | J25: 0.6667155894 | K25: 163 | L25: 42.15033961 | M25: 104.5496604 | N25: 220.033853
A26: 3.5 | B26: 0.7134673519 | E26: 2.664753627 | F26: 6.635246373 | G26: 360.8931363 | H26: 32.83703701 | I26: 2.498884657 | J26: 0.3109817461 | K26: 163 | L26: 42.03433947 | M26: 104.6656605 | N26: 471.731868
A27: 3.75 | B27: 0.7138357458 | E27: 2.661327564 | F27: 6.638672436 | G27: 360.9090878 | H27: 32.86884637 | I27: 2.498630562 | J27: 0.1447278346 | K27: 163 | L27: 41.98029609 | M27: 104.7197039 | N27: 1013.626718
A28: 4 | B28: 0.7140070988 | E28: 2.659733981 | F28: 6.640266019 | G28: 360.9165074 | H28: 32.88365156 | I28: 2.49851239 | J28: 0.06728429528 | K28: 163 | L28: 41.95515861 | M28: 104.7448414 | N28: 2180.300758
A29: 4.25 | B29: 0.7140867409 | E29: 2.65899331 | F29: 6.64100669 | G29: 360.9199559 | H29: 32.89053484 | I29: 2.498457469 | J29: 0.03126535825 | K29: 163 | L29: 41.94347511 | M29: 104.7565249 | N29: 4692.094005
A30: 4.5 | B30: 0.7141237442 | E30: 2.658649179 | F30: 6.641350821 | G30: 360.9215581 | H30: 32.89373339 | I30: 2.498431952 | J30: 0.01452494811 | K30: 163 | L30: 41.93804673 | M30: 104.7619533 | N30: 10099.86397
A31: 4.75 | B31: 0.7141409339 | E31: 2.658489315 | F31: 6.641510685 | G31: 360.9223024 | H31: 32.89521936 | I31: 2.498420099 | J31: 0.006747144197 | K31: 163 | L31: 41.935525 | M31: 104.764475 | N31: 21742.5322
A32: 5 | B32: 0.7141489187 | E32: 2.658415057 | F32: 6.641584943 | G32: 360.9226482 | H32: 32.89590963 | I32: 2.498414593 | J32: 0.00313403706 | K32: 163 | L32: 41.93435363 | M32: 104.7656464 | N32: 46808.63601
A37: COCO <Fogler_11_3.fsd>
A38: V | B38: =11*(3.14/4)*0.7^2 -> 4.23115 | C38: m3
B40: V | C40: temperature | E40: FA | F40: X | H40: V | I40: rxn1 rate profile
A41: section | B41: m3 | C41: ℃ | D41: K | E41: kmol/h | I41: kmol/m3-h
A42: 0 | B42: =$B$38*A42/100 -> 0 | C42: 56.85 | D42: =C42+273.15 -> 330 | E42: 146.7 | F42: =($E$42-E42)/$E$42 -> 0 | G42: 0 | H42: =$B$38*G42/100 -> 0 | I42: 34.4
A43: 20 | B43: =$B$38*A43/100 -> 0.84623 | C43: 66.82 | D43: =C43+273.15 -> 339.97 | E43: 112.5 | F43: =($E$42-E43)/$E$42 -> 0.2331288344 | G43: 10 | H43: =$B$38*G43/100 -> 0.423115 | I43: 40.46
A44: 40 | B44: 1.69246 | C44: 77.8 | D44: 350.95 | E44: 73.3 | F44: 0.5003408316 | G44: 20 | H44: 0.84623 | I44: 45.99
A45: 60 | B45: 2.53869 | C45: 84.17 | D45: 357.32 | E45: 49.5 | F45: 0.6625766871 | G45: 30 | H45: 1.269345 | I45: 47.7
A46: 80 | B46: 3.38492 | C46: 85.86 | D46: 359.01 | E46: 43 | F46: 0.7068847989 | G46: 40 | H46: 1.69246 | I46: 41.36
A47: 100 | B47: =$B$38*A47/100 -> 4.23115 | C47: 86.16 | D47: 359.31 | E47: 41.86 | F47: 0.7146557601 | G47: 50 | H47: 2.115575 | I47: 28.02
G48: 60 | H48: 2.53869 | I48: 15.05
G49: 70 | H49: 2.961805 | I49: 6.94
G50: 80 | H50: 3.38492 | I50: 2.96
G51: 90 | H51: 3.808035 | I51: 1.21
G52: 100 | H52: 4.23115 | I52: 0.49
